[Event "Asian Amateur Rapid 2024"]
[Site "Al Ain"]
[Date "2024.12.15"]
[Round "1.2"]
[White "Daneshpour, S.A."]
[Black "Rashed Abubaker, Alhemeiri"]
[Result "1-0"]
[ECO "A23"]
[WhiteElo "1899"]
[BlackElo "1861"]
[Annotator "NA RC"]
[PlyCount "91"]
[EventDate "2024.12.15"]
[EventType "swiss"]
[EventCountry "UAE"]
[SourceTitle "playchess.com"]
[Source "ChessBase"]
[SourceQuality "1"]
[TimeControl "900+10"]

1. g3 {[%emt 0:00:05]} d5 {[%emt 0:00:08]} 2. Bg2 {[%emt 0:00:04]} e5 {[%emt 0:00:29]} 3. c4 {[%emt 0:00:03]} c6 {[%emt 0:00:20]} 4. cxd5 {[%emt 0:00:01]} cxd5 {[%emt 0:00:01]} 5. Qb3 {[%emt 0:00:01]} Nf6 {[%emt 0:00:12]} 6. Nc3 {[%emt 0:00:02]} e4 {[%emt 0:01:11]} 7. f3 {[%emt 0:00:05]} Nc6 {[%emt 0:01:31]} 8. fxe4 {[%emt 0:00:03]} dxe4 {[%emt 0:00:01]} 9. Nxe4 {[%emt 0:00:08]} Bf5 {[%emt 0:00:41]} 10. Nxf6+ {[%emt 0:00:13]} Qxf6 {[%emt 0:00:01]} 11. Nf3 {[%emt 0:01:59]} Bc5 {[%emt 0:00:04]} 12. e3 {[%emt 0:01:48]} Qe7 {[%emt 0:03:11]} 13. O-O {[%emt 0:00:43]} O-O {[%emt 0:00:09]} 14. d4 {[%emt 0:00:09]} Bd6 {[%emt 0:00:32]} 15. Bd2 {[%emt 0:00:16]} Rac8 {[%emt 0:09:09]} 16. Rac1 {[%emt 0:00:11]} Nb4 {[%emt 0:00:00]} 17. Bxb4 {[%emt 0:00:16]} Bxb4 {[%emt 0:00:00]} 18. Ne5 {[%emt 0:00:37]} Rc7 {[%emt 0:00:30]} 19. Rfd1 Rxc1 20. Rxc1 {[%emt 0:00:12]} Be6 {[%emt 0:00:00]} 21. Qc2 {[%emt 0:00:54]} f6 {[%emt 0:00:00]} 22. Nd3 {[%emt 0:00:13]} Bd6 {[%emt 0:00:00]} 23. Nc5 {[%emt 0:01:06]} Bc8 {[%emt 0:00:00]} 24. Qe4 {[%emt 0:00:30]} Qc7 {[%emt 0:00:28]} 25. Rc3 {[%emt 0:01:16]} Qb6 {[%emt 0:00:01]} 26. Na4 {[%emt 0:01:15]} Qa5 {[%emt 0:00:02]} 27. Rxc8 {[%emt 0:01:20]} Qxa4 {[%emt 0:00:44]} 28. Qd5+ {[%emt 0:00:54]} Kh8 {[%emt 0:00:01]} 29. Rxf8+ {[%emt 0:00:37]} Bxf8 {[%emt 0:00:01]} 30. Qf7 {[%emt 0:01:57]} Qb4 {[%emt 0:00:12]} 31. h4 {[%emt 0:01:28]} Qe7 {[%emt 0:00:28]} 32. Qxe7 {[%emt 0:00:02]} Bxe7 {[%emt 0:00:01]} 33. Bxb7 {[%emt 0:00:03]} Kg8 {[%emt 0:00:00]} 34. Kf2 {[%emt 0:00:03]} Bd6 {[%emt 0:00:01]} 35. Kf3 {[%emt 0:00:05]} Kf7 {[%emt 0:00:01]} 36. g4 {[%emt 0:00:08]} g5 {[%emt 0:00:02]} 37. hxg5 {[%emt 0:00:04]} fxg5 {[%emt 0:00:01]} 38. e4 {[%emt 0:00:07]} Bb4 {[%emt 0:00:38]} 39. e5 {[%emt 0:00:07]} Ke6 {[%emt 0:00:02]} 40. Ke4 {[%emt 0:00:04]} Be1 {[%emt 0:00:39]} 41. d5+ {[%emt 0:00:02]} Ke7 {[%emt 0:00:01]} 42. d6+ {[%emt 0:00:05]} Kd7 {[%emt 0:00:05]} 43. Kd5 {[%emt 0:00:12]} Bg3 {[%emt 0:00:31]} 44. e6+ {[%emt 0:00:03]} Ke8 {[%emt 0:00:05]} 45. Bc6+ {[%emt 0:00:02]} Kd8 {[%emt 0:00:02]} 46. e7+ {[%emt 0:00:11]} 1-0

[Event "Asian Amateur Rapid 2024"]
[Site "Al Ain"]
[Date "2024.12.15"]
[Round "1.4"]
[White "Hayder, Hassan Shyaa"]
[Black "Kanev, Evgeny"]
[Result "1-0"]
[ECO "B08"]
[WhiteElo "1991"]
[BlackElo "1785"]
[Annotator "RC"]
[PlyCount "100"]
[EventDate "2024.12.15"]
[EventType "swiss"]
[EventCountry "UAE"]
[SourceTitle "playchess.com"]
[Source "ChessBase"]
[SourceQuality "1"]
[TimeControl "900+10"]

1. e4 {[%emt 0:00:03]} d6 {[%emt 0:00:02]} 2. d4 {[%emt 0:00:02]} Nf6 {[%emt 0:00:02]} 3. Nc3 {[%emt 0:00:01]} g6 {[%emt 0:00:02]} 4. Nf3 {[%emt 0:00:02]} Bg7 {[%emt 0:00:02]} 5. Be2 {[%emt 0:00:06]} O-O {[%emt 0:00:02]} 6. O-O {[%emt 0:00:03]} Nc6 {[%emt 0:00:05]} 7. h3 {[%emt 0:00:19]} Nd7 {[%emt 0:00:02]} 8. Be3 {[%emt 0:00:16]} e5 {[%emt 0:00:03]} 9. Qd2 {[%emt 0:00:25]} f5 {[%emt 0:04:35]} 10. dxe5 {[%emt 0:01:55]} Ndxe5 {[%emt 0:00:07]} 11. Nxe5 {[%emt 0:00:30]} Nxe5 {[%emt 0:00:49]} 12. f4 {[%emt 0:00:44]} Nc6 {[%emt 0:01:48]} 13. Bf3 {[%emt 0:00:05]} fxe4 {[%emt 0:01:26]} 14. Bxe4 {[%emt 0:00:14]} Bf5 {[%emt 0:01:26]} 15. Bxc6 {[%emt 0:01:22]} bxc6 {[%emt 0:00:07]} 16. Bd4 {[%emt 0:00:02]} Bxd4+ {[%emt 0:02:29]} 17. Qxd4 {[%emt 0:00:02]} c5 {[%emt 0:00:31]} 18. Qd5+ {[%emt 0:00:58]} Kg7 {[%emt 0:00:33]} 19. Rf2 {[%emt 0:00:27]} Qd7 {[%emt 0:04:09]} 20. Rd1 {[%emt 0:00:30]} Rae8 {[%emt 0:00:00]} 21. Qf3 {[%emt 0:01:36]} c6 {[%emt 0:00:00]} 22. Na4 {[%emt 0:02:03]} Qc7 {[%emt 0:00:00]} 23. Rfd2 {[%emt 0:00:34]} d5 {[%emt 0:00:00]} 24. Nxc5 {[%emt 0:00:12]} Be4 {[%emt 0:00:00]} 25. Nxe4 {[%emt 0:00:20]} Rxe4 {[%emt 0:00:10]} 26. Qxe4 {[%emt 0:00:05]} dxe4 {[%emt 0:00:04]} 27. Rd7+ {[%emt 0:00:02]} Rf7 {[%emt 0:00:01]} 28. Rxc7 {[%emt 0:00:03]} Rxc7 {[%emt 0:00:01]} 29. Kf2 {[%emt 0:00:16]} Kf6 {[%emt 0:00:40]} 30. Ke3 {[%emt 0:00:03]} Ke6 {[%emt 0:00:26]} 31. Kxe4 {[%emt 0:00:04]} Rb7 {[%emt 0:00:02]} 32. b3 {[%emt 0:00:02]} a5 {[%emt 0:00:46]} 33. Rd4 {[%emt 0:00:28]} h5 {[%emt 0:00:00]} 34. g4 {[%emt 0:00:16]} hxg4 {[%emt 0:00:00]} 35. hxg4 {[%emt 0:00:02]} Rb5 {[%emt 0:00:00]} 36. Rc4 {[%emt 0:00:24]} Kd6 {[%emt 0:00:09]} 37. f5 {[%emt 0:00:07]} gxf5+ {[%emt 0:00:23]} 38. gxf5 {[%emt 0:00:02]} Rb7 {[%emt 0:00:15]} 39. Kf4 {[%emt 0:00:10]} Kd5 {[%emt 0:00:08]} 40. Kg5 {[%emt 0:00:11]} Rg7+ {[%emt 0:00:10]} 41. Kf6 {[%emt 0:00:02]} Rg2 {[%emt 0:00:03]} 42. Kf7 {[%emt 0:00:04]} c5 {[%emt 0:00:13]} 43. f6 {[%emt 0:00:18]} Re2 {[%emt 0:00:11]} 44. Kf8 {[%emt 0:00:17]} Kd6 {[%emt 0:00:04]} 45. f7 {[%emt 0:00:08]} Ke6 {[%emt 0:00:21]} 46. Rf4 {[%emt 0:00:10]} a4 {[%emt 0:00:11]} 47. Kg7 {[%emt 0:00:09]} Rg2+ {[%emt 0:00:03]} 48. Kh6 {[%emt 0:00:02]} Rh2+ {[%emt 0:00:02]} 49. Kg5 {[%emt 0:00:01]} axb3 {[%emt 0:00:04]} 50. axb3 {[%emt 0:00:03]} Kd5 {[%emt 0:00:43]} 1-0

[Event "Asian Amateur Rapid 2024"]
[Site "Al Ain"]
[Date "2024.12.15"]
[Round "1.5"]
[White "Pathak Anshu Kr"]
[Black "Mohamed Saeed Laily"]
[Result "0-1"]
[ECO "B13"]
[WhiteElo "1661"]
[BlackElo "1984"]
[Annotator "RC"]
[PlyCount "92"]
[EventDate "2024.12.15"]
[EventType "swiss"]
[EventCountry "UAE"]
[SourceTitle "playchess.com"]
[Source "ChessBase"]
[SourceQuality "1"]
[TimeControl "900+10"]

1. e4 {[%emt 0:00:05]} c6 {[%emt 0:00:02]} 2. d4 {[%emt 0:00:07]} d5 {[%emt 0:00:03]} 3. exd5 {[%emt 0:00:03]} cxd5 {[%emt 0:00:02]} 4. Bd3 {[%emt 0:00:03]} Nc6 {[%emt 0:00:01]} 5. c3 {[%emt 0:00:01]} Nf6 {[%emt 0:00:02]} 6. Bf4 {[%emt 0:00:05]} g6 {[%emt 0:00:06]} 7. Nf3 {[%emt 0:00:08]} Bf5 {[%emt 0:00:06]} 8. Ne5 {[%emt 0:00:24]} Bg7 {[%emt 0:00:23]} 9. O-O {[%emt 0:00:14]} O-O {[%emt 0:00:13]} 10. Bxf5 {[%emt 0:00:05]} gxf5 {[%emt 0:00:03]} 11. Nd2 {[%emt 0:00:33]} e6 {[%emt 0:00:43]} 12. Nxc6 {[%emt 0:00:07]} bxc6 {[%emt 0:00:02]} 13. Re1 {[%emt 0:01:06]} Qb6 {[%emt 0:01:54]} 14. Rb1 {[%emt 0:00:24]} c5 {[%emt 0:01:24]} 15. Be5 {[%emt 0:01:19]} cxd4 {[%emt 0:03:42]} 16. Bxd4 {[%emt 0:00:50]} Qc7 {[%emt 0:00:27]} 17. Nf3 {[%emt 0:01:26]} Ne4 {[%emt 0:02:22]} 18. Bxg7 {[%emt 0:00:57]} Kxg7 {[%emt 0:00:01]} 19. Re3 {[%emt 0:00:38]} Qb6 {[%emt 0:00:58]} 20. Ne5 {[%emt 0:00:27]} Rad8 {[%emt 0:01:17]} 21. Qh5 {[%emt 0:00:39]} f6 {[%emt 0:02:30]} 22. Nd3 {[%emt 0:03:45]} Qc7 {[%emt 0:00:34]} 23. Rh3 {[%emt 0:00:27]} Kg8 {[%emt 0:00:12]} 24. Nf4 {[%emt 0:00:28]} Rde8 {[%emt 0:01:02]} 25. Qh4 {[%emt 0:01:02]} Qf7 {[%emt 0:00:34]} 26. Nh5 {[%emt 0:00:28]} Kh8 {[%emt 0:00:13]} 27. Re1 {[%emt 0:00:51]} Rg8 {[%emt 0:00:02]} 28. Rxe4 {[%emt 0:00:38]} dxe4 {[%emt 0:00:23]} 29. Nxf6 {[%emt 0:00:39]} Rg7 {[%emt 0:00:10]} 30. Nxe8 {[%emt 0:00:15]} Qxe8 {[%emt 0:00:00]} 31. Qf6 {[%emt 0:00:04]} Qd7 {[%emt 0:00:21]} 32. Qf8+ {[%emt 0:00:42]} Rg8 {[%emt 0:00:01]} 33. Qf6+ {[%emt 0:00:01]} Rg7 {[%emt 0:00:01]} 34. Qf8+ {[%emt 0:01:18]} Rg8 {[%emt 0:00:00]} 35. Qf6+ {[%emt 0:00:02]} Qg7 {[%emt 0:00:18]} 36. Qxg7+ {[%emt 0:00:07]} Rxg7 {[%emt 0:00:01]} 37. Kf1 {[%emt 0:00:05]} Rb7 {[%emt 0:00:01]} 38. b3 {[%emt 0:00:06]} Kg7 {[%emt 0:00:33]} 39. c4 {[%emt 0:00:02]} Kf6 {[%emt 0:00:06]} 40. Ke2 {[%emt 0:00:18]} Rg7 {[%emt 0:00:01]} 41. g3 {[%emt 0:00:10]} Ke5 {[%emt 0:00:13]} 42. Rh4 {[%emt 0:00:22]} Rd7 {[%emt 0:01:03]} 43. Rh6 {[%emt 0:00:16]} a5 {[%emt 0:00:00]} 44. h4 {[%emt 0:00:24]} Rg7 {[%emt 0:00:00]} 45. Rh5 {[%emt 0:00:09]} Kf6 {[%emt 0:00:00]} 46. Rg5 {[%emt 0:00:30]} Ke5 {[%emt 0:00:00]} 0-1

[Event "Asian Amateur Rapid 2024"]
[Site "Al Ain"]
[Date "2024.12.15"]
[Round "1.6"]
[White "Lovakov, Egor Vlad"]
[Black "Obado, Sean Adrich"]
[Result "1/2-1/2"]
[ECO "D78"]
[WhiteElo "1763"]
[BlackElo "1605"]
[Annotator "NA"]
[PlyCount "94"]
[EventDate "2024.12.15"]
[EventType "swiss"]
[EventCountry "UAE"]
[SourceTitle "playchess.com"]
[Source "ChessBase"]
[SourceQuality "1"]
[TimeControl "900+10"]

1. Nf3 {[%emt 0:00:07]} d5 {[%emt 0:00:02]} 2. g3 {[%emt 0:00:02]} Nf6 {[%emt 0:00:10]} 3. Bg2 {[%emt 0:00:03]} g6 {[%emt 0:00:06]} 4. O-O {[%emt 0:00:06]} Bg7 {[%emt 0:00:03]} 5. d4 {[%emt 0:00:07]} O-O {[%emt 0:00:06]} 6. c4 {[%emt 0:00:02]} c6 {[%emt 0:00:18]} 7. Qa4 {[%emt 0:00:17]} Bg4 {[%emt 0:00:28]} 8. Nc3 {[%emt 0:00:19]} Nbd7 {[%emt 0:00:15]} 9. h3 {[%emt 0:00:49]} Bxf3 {[%emt 0:01:11]} 10. Bxf3 {[%emt 0:00:03]} Nb6 {[%emt 0:00:01]} 11. Qd1 {[%emt 0:00:33]} Nxc4 {[%emt 0:00:31]} 12. b3 {[%emt 0:00:11]} Nd6 {[%emt 0:00:12]} 13. Bb2 {[%emt 0:00:02]} Qd7 {[%emt 0:00:41]} 14. Kh2 {[%emt 0:00:32]} Nfe4 {[%emt 0:00:47]} 15. Bg2 {[%emt 0:00:23]} Qf5 {[%emt 0:01:35]} 16. f3 {[%emt 0:01:13]} Nxc3 {[%emt 0:01:47]} 17. Bxc3 {[%emt 0:00:02]} Nb5 {[%emt 0:00:33]} 18. Bb2 {[%emt 0:00:22]} c5 {[%emt 0:00:14]} 19. e4 {[%emt 0:03:11]} dxe4 {[%emt 0:00:11]} 20. fxe4 {[%emt 0:00:01]} Qd7 {[%emt 0:00:01]} 21. Rc1 {[%emt 0:01:09]} cxd4 {[%emt 0:01:22]} 22. a4 {[%emt 0:00:19]} Nc7 {[%emt 0:00:15]} 23. Qd3 {[%emt 0:00:43]} Ne6 {[%emt 0:00:31]} 24. Ba3 {[%emt 0:01:02]} Rac8 {[%emt 0:00:44]} 25. h4 {[%emt 0:00:09]} Be5 {[%emt 0:02:34]} 26. Bh3 {[%emt 0:00:20]} Rxc1 {[%emt 0:01:17]} 27. Rxc1 {[%emt 0:00:04]} Bd6 {[%emt 0:00:24]} 28. Bb2 {[%emt 0:00:18]} Rd8 {[%emt 0:00:31]} 29. Rc4 {[%emt 0:01:11]} Be5 {[%emt 0:00:59]} 30. Ba3 {[%emt 0:01:35]} Rc8 {[%emt 0:00:57]} 31. Rxc8+ {[%emt 0:00:42]} Qxc8 {[%emt 0:00:00]} 32. Bxe7 {[%emt 0:00:11]} Qc3 {[%emt 0:00:29]} 33. Bf1 {[%emt 0:00:14]} Qb2+ {[%emt 0:00:25]} 34. Be2 {[%emt 0:01:23]} Qc1 {[%emt 0:00:19]} 35. Bb4 {[%emt 0:00:39]} Qh6 {[%emt 0:00:22]} 36. Kg2 {[%emt 0:00:19]} g5 {[%emt 0:00:06]} 37. h5 {[%emt 0:00:28]} Qf6 {[%emt 0:00:07]} 38. Bg4 {[%emt 0:00:34]} Bc7 {[%emt 0:00:08]} 39. Bf5 {[%emt 0:00:34]} Qe5 {[%emt 0:00:12]} 40. Kf2 {[%emt 0:00:34]} Nc5 {[%emt 0:00:19]} 41. Bxc5 {[%emt 0:00:05]} Qxc5 {[%emt 0:00:00]} 42. Qc4 {[%emt 0:00:36]} Qxc4 {[%emt 0:00:06]} 43. bxc4 {[%emt 0:00:02]} Bb6 {[%emt 0:00:26]} 44. Ke2 {[%emt 0:00:05]} Bc7 {[%emt 0:00:03]} 45. g4 {[%emt 0:00:04]} Be5 {[%emt 0:00:03]} 46. h6 {[%emt 0:00:28]} b6 {[%emt 0:00:23]} 47. Kd3 {[%emt 0:00:08]} a5 {[%emt 0:00:46]} 1/2-1/2

[Event "Asian Amateur Rapid 2024"]
[Site "Al Ain"]
[Date "2024.12.15"]
[Round "1.7"]
[White "Olimjonov, Muhammadziyo"]
[Black "Khalifah, Khaled"]
[Result "1-0"]
[ECO "E17"]
[WhiteElo "1505"]
[BlackElo "1962"]
[Annotator "RC"]
[PlyCount "93"]
[EventDate "2024.12.15"]
[EventType "swiss"]
[EventCountry "UAE"]
[SourceTitle "playchess.com"]
[Source "ChessBase"]
[SourceQuality "1"]
[TimeControl "900+10"]

1. c4 {[%emt 0:00:50]} e6 {[%emt 0:00:01]} 2. g3 {[%emt 0:00:09]} d5 {[%emt 0:00:01]} 3. Bg2 {[%emt 0:00:08]} Nf6 {[%emt 0:00:01]} 4. cxd5 {[%emt 0:00:15]} exd5 {[%emt 0:00:02]} 5. d4 {[%emt 0:00:18]} b6 {[%emt 0:00:16]} 6. Nf3 {[%emt 0:00:12]} Be7 {[%emt 0:00:17]} 7. O-O {[%emt 0:00:05]} O-O {[%emt 0:00:02]} 8. Nc3 {[%emt 0:00:06]} Bb7 {[%emt 0:00:01]} 9. Bf4 {[%emt 0:00:15]} Nbd7 {[%emt 0:00:01]} 10. Re1 {[%emt 0:00:28]} Re8 {[%emt 0:01:37]} 11. Nb5 {[%emt 0:00:26]} Bb4 {[%emt 0:01:03]} 12. Nxc7 {[%emt 0:00:56]} Bxe1 {[%emt 0:00:05]} 13. Nxe1 {[%emt 0:00:31]} Rc8 {[%emt 0:01:55]} 14. Nxe8 {[%emt 0:00:07]} Qxe8 {[%emt 0:00:01]} 15. Nd3 {[%emt 0:00:14]} h6 {[%emt 0:00:06]} 16. h4 {[%emt 0:01:13]} Qe6 {[%emt 0:02:18]} 17. Bf3 {[%emt 0:01:13]} Rc4 {[%emt 0:01:28]} 18. Rc1 {[%emt 0:00:46]} Ne4 {[%emt 0:03:04]} 19. b3 {[%emt 0:00:28]} Rc6 {[%emt 0:02:34]} 20. Nb4 {[%emt 0:01:36]} Rxc1 {[%emt 0:00:58]} 21. Qxc1 {[%emt 0:00:10]} a5 {[%emt 0:01:31]} 22. Nd3 {[%emt 0:00:30]} f6 {[%emt 0:00:26]} 23. Bd2 {[%emt 0:02:28]} g5 {[%emt 0:00:10]} 24. hxg5 {[%emt 0:00:12]} hxg5 {[%emt 0:00:01]} 25. b4 {[%emt 0:00:51]} Ba6 {[%emt 0:01:21]} 26. bxa5 {[%emt 0:00:13]} bxa5 {[%emt 0:00:00]} 27. Bxa5 {[%emt 0:00:53]} Bc4 {[%emt 0:00:00]} 28. Qc2 {[%emt 0:01:16]} Qa6 {[%emt 0:00:00]} 29. Bxe4 {[%emt 0:02:36]} Qxa5 {[%emt 0:00:00]} 30. Bf5 {[%emt 0:00:07]} Nb6 {[%emt 0:00:00]} 31. Nc1 {[%emt 0:00:04]} Kh8 {[%emt 0:00:47]} 32. Bd3 {[%emt 0:00:14]} Qe1+ {[%emt 0:00:12]} 33. Kg2 {[%emt 0:00:01]} Qb4 {[%emt 0:00:06]} 34. Bxc4 {[%emt 0:00:05]} Qxc4 {[%emt 0:00:01]} 35. Qxc4 {[%emt 0:00:02]} Nxc4 {[%emt 0:00:01]} 36. Nd3 {[%emt 0:00:02]} Kg7 {[%emt 0:00:01]} 37. Nb4 {[%emt 0:00:01]} Kf7 {[%emt 0:00:01]} 38. Nxd5 {[%emt 0:00:01]} Ke6 {[%emt 0:00:02]} 39. Nc3 {[%emt 0:00:02]} Nd2 {[%emt 0:00:07]} 40. e4 {[%emt 0:00:04]} g4 {[%emt 0:00:03]} 41. a4 {[%emt 0:00:06]} Nb3 {[%emt 0:00:02]} 42. Nb5 {[%emt 0:00:06]} f5 {[%emt 0:00:05]} 43. exf5+ {[%emt 0:00:02]} Kxf5 {[%emt 0:00:01]} 44. f3 {[%emt 0:00:04]} Na5 {[%emt 0:00:13]} 45. fxg4+ {[%emt 0:00:03]} Kxg4 {[%emt 0:00:00]} 46. d5 {[%emt 0:00:01]} Nc4 {[%emt 0:00:03]} 47. d6 {[%emt 0:00:02]} 1-0

[Event "Asian Amateur Rapid 2024"]
[Site "Al Ain"]
[Date "2024.12.15"]
[Round "1.11"]
[White "Shelke Omkar"]
[Black "Sharma Pankaj"]
[Result "1-0"]
[ECO "D05"]
[WhiteElo "1764"]
[BlackElo "1861"]
[Annotator "NA"]
[PlyCount "129"]
[EventDate "2024.12.15"]
[EventType "swiss"]
[EventCountry "UAE"]
[SourceTitle "playchess.com"]
[Source "ChessBase"]
[SourceQuality "1"]
[TimeControl "900+10"]

1. d4 {[%emt 0:00:03]} d5 {[%emt 0:00:02]} 2. e3 {[%emt 0:00:06]} c5 {[%emt 0:00:03]} 3. Nf3 {[%emt 0:00:04]} e6 {[%emt 0:00:30]} 4. b3 {[%emt 0:00:02]} Nf6 {[%emt 0:00:07]} 5. Bd3 {[%emt 0:00:02]} Nc6 {[%emt 0:00:36]} 6. Bb2 {[%emt 0:00:08]} Bd7 {[%emt 0:01:00]} 7. a3 {[%emt 0:00:46]} Rc8 {[%emt 0:00:01]} 8. Nbd2 {[%emt 0:00:04]} Qb6 {[%emt 0:02:29]} 9. c4 {[%emt 0:02:45]} cxd4 {[%emt 0:00:43]} 10. exd4 {[%emt 0:01:04]} Be7 {[%emt 0:00:45]} 11. O-O {[%emt 0:01:01]} O-O {[%emt 0:00:03]} 12. Re1 {[%emt 0:03:25]} Rfd8 {[%emt 0:00:39]} 13. c5 {[%emt 0:00:56]} Qc7 {[%emt 0:00:01]} 14. b4 {[%emt 0:00:02]} a6 {[%emt 0:00:11]} 15. Ne5 {[%emt 0:00:25]} Be8 {[%emt 0:00:46]} 16. f4 {[%emt 0:00:54]} Bf8 {[%emt 0:01:10]} 17. Ndf3 {[%emt 0:01:19]} g6 {[%emt 0:00:51]} 18. Rc1 {[%emt 0:00:29]} Ne7 {[%emt 0:01:53]} 19. Qe2 {[%emt 0:00:32]} Bh6 {[%emt 0:00:36]} 20. Ng5 {[%emt 0:00:21]} Bg7 {[%emt 0:01:30]} 21. Ngf3 {[%emt 0:00:50]} Nh5 {[%emt 0:00:10]} 22. g3 {[%emt 0:00:12]} Nf6 {[%emt 0:01:47]} 23. Ng5 {[%emt 0:00:03]} Nf5 {[%emt 0:00:11]} 24. g4 {[%emt 0:01:14]} Ne7 {[%emt 0:00:43]} 25. f5 {[%emt 0:00:25]} Bh6 {[%emt 0:00:05]} 26. h4 {[%emt 0:00:01]} Ne4 {[%emt 0:01:05]} 27. Bxe4 {[%emt 0:01:46]} dxe4 {[%emt 0:00:10]} 28. Nxe4 {[%emt 0:00:30]} Nd5 {[%emt 0:01:00]} 29. g5 {[%emt 0:00:05]} Bg7 {[%emt 0:00:24]} 30. f6 {[%emt 0:00:03]} Bf8 {[%emt 0:00:39]} 31. Qf3 {[%emt 0:00:12]} h5 {[%emt 0:00:00]} 32. gxh6 {[%emt 0:00:24]} Bxh6 {[%emt 0:00:00]} 33. Ng5 {[%emt 0:00:02]} Rd7 {[%emt 0:00:00]} 34. Rf1 {[%emt 0:00:17]} Qd8 {[%emt 0:00:04]} 35. Rc2 {[%emt 0:00:02]} Nc7 {[%emt 0:00:16]} 36. Qg4 {[%emt 0:00:12]} Nd5 {[%emt 0:00:08]} 37. Rcf2 {[%emt 0:00:08]} Ne3 {[%emt 0:00:01]} 38. Qf4 {[%emt 0:00:16]} Nxf1 {[%emt 0:00:04]} 39. Kxf1 {[%emt 0:00:01]} Rd5 {[%emt 0:00:05]} 40. Qg3 {[%emt 0:00:24]} Bb5+ {[%emt 0:00:01]} 41. Kg1 {[%emt 0:00:02]} Rxe5 {[%emt 0:00:29]} 42. Qxe5 {[%emt 0:00:16]} Bc6 {[%emt 0:00:05]} 43. Re2 {[%emt 0:00:13]} a5 {[%emt 0:00:20]} 44. Rf2 {[%emt 0:00:06]} axb4 {[%emt 0:00:02]} 45. axb4 {[%emt 0:00:02]} Ra8 {[%emt 0:00:01]} 46. Kh2 {[%emt 0:00:15]} Ra4 {[%emt 0:00:18]} 47. Bc3 {[%emt 0:00:09]} Ra3 {[%emt 0:00:05]} 48. Bd2 {[%emt 0:00:02]} Ra2 {[%emt 0:00:24]} 49. Kg3 {[%emt 0:00:18]} Ra1 {[%emt 0:00:24]} 50. Nxe6 {[%emt 0:00:18]} fxe6 {[%emt 0:00:17]} 51. Bxh6 {[%emt 0:00:06]} Rg1+ {[%emt 0:00:03]} 52. Kh2 {[%emt 0:00:07]} Rh1+ {[%emt 0:00:02]} 53. Kg3 {[%emt 0:00:01]} Rg1+ {[%emt 0:00:05]} 54. Kh2 {[%emt 0:00:01]} Rh1+ {[%emt 0:00:06]} 55. Kg3 {[%emt 0:00:01]} Rg1+ {[%emt 0:00:06]} 56. Kf4 {[%emt 0:00:36]} Kf7 {[%emt 0:00:27]} 57. Bg5 {[%emt 0:00:01]} Rd1 {[%emt 0:00:10]} 58. Ke3 {[%emt 0:00:14]} Re1+ {[%emt 0:00:11]} 59. Re2 {[%emt 0:00:03]} Rf1 {[%emt 0:00:03]} 60. Qd6 {[%emt 0:00:20]} Rf3+ {[%emt 0:00:13]} 61. Kd2 {[%emt 0:00:01]} Qxd6 {[%emt 0:00:02]} 62. cxd6 {[%emt 0:00:01]} Rb3 {[%emt 0:00:09]} 63. d5 {[%emt 0:00:15]} Bxd5 {[%emt 0:00:07]} 64. d7 {[%emt 0:00:04]} Rb2+ {[%emt 0:00:27]} 65. Ke1 {[%emt 0:00:05]} 1-0

[Event "Asian Amateur Rapid 2024"]
[Site "Al Ain"]
[Date "2024.12.15"]
[Round "1.13"]
[White "Muhammad Saifan Noushad Ibrahi"]
[Black "Soud, Jaber"]
[Result "0-1"]
[ECO "C67"]
[WhiteElo "1534"]
[BlackElo "1956"]
[Annotator "RC"]
[PlyCount "70"]
[EventDate "2024.12.15"]
[EventType "swiss"]
[EventCountry "UAE"]
[SourceTitle "playchess.com"]
[Source "ChessBase"]
[SourceQuality "1"]
[TimeControl "900+10"]

1. e4 {[%emt 0:00:03]} e5 {[%emt 0:00:01]} 2. Nf3 {[%emt 0:00:01]} Nc6 {[%emt 0:00:02]} 3. Bb5 {[%emt 0:00:02]} Nf6 {[%emt 0:00:27]} 4. O-O {[%emt 0:00:03]} Nxe4 {[%emt 0:00:02]} 5. Re1 {[%emt 0:00:02]} Nd6 {[%emt 0:00:02]} 6. Nxe5 {[%emt 0:00:07]} Be7 {[%emt 0:00:02]} 7. Bxc6 {[%emt 0:00:20]} dxc6 {[%emt 0:00:02]} 8. d4 {[%emt 0:00:05]} O-O {[%emt 0:01:00]} 9. c3 {[%emt 0:00:14]} Re8 {[%emt 0:01:58]} 10. Bf4 {[%emt 0:00:37]} Bf6 {[%emt 0:01:29]} 11. Nd2 {[%emt 0:00:24]} a5 {[%emt 0:00:58]} 12. a4 {[%emt 0:00:14]} Nf5 {[%emt 0:00:56]} 13. Ndf3 {[%emt 0:01:18]} Be6 {[%emt 0:02:27]} 14. Qc2 {[%emt 0:00:38]} Nh4 {[%emt 0:01:38]} 15. Nxh4 {[%emt 0:02:16]} Bxh4 {[%emt 0:00:02]} 16. Rad1 {[%emt 0:00:18]} Qf6 {[%emt 0:02:26]} 17. Bg3 {[%emt 0:00:49]} Bxg3 {[%emt 0:00:02]} 18. hxg3 {[%emt 0:00:01]} Qf5 {[%emt 0:00:18]} 19. Qxf5 {[%emt 0:02:23]} Bxf5 {[%emt 0:00:01]} 20. g4 {[%emt 0:00:53]} Bc2 {[%emt 0:00:47]} 21. Ra1 {[%emt 0:00:01]} f6 {[%emt 0:00:15]} 22. Nd7 {[%emt 0:00:42]} b6 {[%emt 0:01:25]} 23. d5 {[%emt 0:02:00]} cxd5 {[%emt 0:00:42]} 24. Rec1 {[%emt 0:00:49]} Re2 {[%emt 0:01:36]} 25. Kf1 {[%emt 0:00:12]} Bd3 {[%emt 0:00:06]} 26. Rd1 {[%emt 0:00:28]} Rd2+ {[%emt 0:00:04]} 27. Ke1 {[%emt 0:01:14]} Re2+ {[%emt 0:00:03]} 28. Kf1 {[%emt 0:00:02]} Rd2+ {[%emt 0:00:01]} 29. Ke1 {[%emt 0:00:01]} Rxd1+ {[%emt 0:00:02]} 30. Rxd1 {[%emt 0:00:02]} Bc4 {[%emt 0:00:05]} 31. Rd4 {[%emt 0:01:25]} Rd8 {[%emt 0:00:22]} 32. Nxf6+ {[%emt 0:00:02]} gxf6 {[%emt 0:00:02]} 33. Rf4 {[%emt 0:00:09]} Re8+ {[%emt 0:00:04]} 34. Kd1 {[%emt 0:00:01]} Kg7 {[%emt 0:00:05]} 35. g3 {[%emt 0:00:14]} Re4 {[%emt 0:00:04]} 0-1

[Event "Asian Amateur Rapid 2024"]
[Site "Al Ain"]
[Date "2024.12.15"]
[Round "1.14"]
[White "Elhayek, Yazid Saqallah"]
[Black "Abdulla Younes Alkhemeiri"]
[Result "1-0"]
[ECO "B07"]
[WhiteElo "1851"]
[BlackElo "1547"]
[Annotator "NA"]
[PlyCount "55"]
[EventDate "2024.12.15"]
[EventType "swiss"]
[EventCountry "UAE"]
[SourceTitle "playchess.com"]
[Source "ChessBase"]
[SourceQuality "1"]
[TimeControl "900+10"]

1. e4 {[%emt 0:00:04]} d6 {[%emt 0:00:05]} 2. d4 {[%emt 0:00:04]} Nf6 {[%emt 0:00:02]} 3. Nc3 {[%emt 0:00:02]} g6 {[%emt 0:00:01]} 4. Be3 {[%emt 0:00:07]} c6 {[%emt 0:00:06]} 5. f3 {[%emt 0:00:08]} b5 {[%emt 0:00:07]} 6. a3 {[%emt 0:00:04]} Nbd7 {[%emt 0:00:22]} 7. Qd2 {[%emt 0:00:12]} a5 {[%emt 0:01:00]} 8. Nh3 {[%emt 0:00:37]} Bb7 {[%emt 0:00:17]} 9. Be2 {[%emt 0:01:03]} b4 {[%emt 0:01:04]} 10. axb4 {[%emt 0:00:03]} axb4 {[%emt 0:00:02]} 11. Rxa8 {[%emt 0:00:01]} Qxa8 {[%emt 0:00:03]} 12. Nd1 {[%emt 0:00:02]} Qa5 {[%emt 0:01:43]} 13. O-O {[%emt 0:00:21]} Bg7 {[%emt 0:00:41]} 14. b3 {[%emt 0:00:36]} c5 {[%emt 0:00:44]} 15. Nb2 {[%emt 0:00:21]} Nb6 {[%emt 0:00:34]} 16. dxc5 {[%emt 0:01:47]} dxc5 {[%emt 0:00:22]} 17. Bh6 {[%emt 0:00:24]} Bxh6 {[%emt 0:00:54]} 18. Qxh6 {[%emt 0:00:03]} Qa2 {[%emt 0:00:14]} 19. Bb5+ {[%emt 0:00:09]} Nbd7 {[%emt 0:01:00]} 20. Nc4 {[%emt 0:01:10]} Ba6 {[%emt 0:01:03]} 21. Bxd7+ {[%emt 0:04:56]} Nxd7 {[%emt 0:00:11]} 22. Qg7 {[%emt 0:00:03]} Rf8 {[%emt 0:00:05]} 23. Ra1 {[%emt 0:00:05]} Qxc2 {[%emt 0:02:41]} 24. Rxa6 {[%emt 0:00:04]} Nf6 {[%emt 0:00:50]} 25. Ra8+ {[%emt 0:01:59]} Kd7 {[%emt 0:00:01]} 26. Qxf8 {[%emt 0:00:35]} Qd1+ {[%emt 0:00:30]} 27. Kf2 {[%emt 0:00:02]} Qd4+ {[%emt 0:00:06]} 28. Ke2 {[%emt 0:00:13]} 1-0